fUSD/lending_fUSD_20260427
["ID","MTS","AMOUNT","RATE_DAILY","PERIOD"]
[421238707,1777286662231,500.0,0.00032876,120]
[421238708,1777286663196,885.91,0.00032876,120]
[421238709,1777286664068,268.05641805,0.00032876,120]
[421238710,1777286664651,1640.34,0.00032876,120]
[421238711,1777286664877,500.0,0.00032876,120]
[421238712,1777286666119,500.0,0.00032876,120]
[421238713,1777286666643,203.56345714,0.00032876,120]
[421238714,1777286667780,891.92,0.00032876,120]
[421238715,1777286668586,11030.36,0.00032876,120]
[421238716,1777286668683,226.71500202,0.00032876,120]
[421238717,1777286670817,669.56,0.00032876,120]
[421238718,1777286671944,535.4795072,0.00032876,120]
[421238719,1777286673252,1805.84,0.00032876,120]
[421238720,1777286673297,500.0,0.00032876,120]
[421238721,1777286673350,651.88342541,0.000324,120]
[421238722,1777286673587,1172.63,0.00032876,120]
[421238723,1777286674627,500.0,0.00032876,120]
[421238724,1777286674802,809.54,0.00032876,120]
[421238725,1777286674890,500.0,0.00032876,120]
[421238726,1777286675143,219.97512488,0.00032876,120]
[421238727,1777286676093,1390.78,0.00032876,120]
[421238728,1777286676659,500.0,0.00032876,120]
[421238729,1777286676947,500.0,0.00032876,120]
[421238730,1777286678384,500.0,0.00032876,120]
[421238731,1777286678946,500.0,0.00032876,120]
[421238732,1777286680062,1925.63,0.00032876,120]
[421238733,1777286680284,668.1,0.00032876,120]
[421238734,1777286681138,500.0,0.00032876,120]
[421238735,1777286682804,500.0,0.00032876,120]
[421238736,1777286683922,500.0,0.00032876,120]
[421238737,1777286684626,209.95870283,0.00032876,120]
[421238738,1777286685034,216.83612925,0.00032876,120]
[421238739,1777286685593,500.0,0.00032876,120]
[421238740,1777286685932,500.0,0.00032876,120]
[421238741,1777286686165,500.0,0.00032876,120]
[421238742,1777286686348,500.0,0.00032876,120]
[421238743,1777286686756,283.01158064,0.00032876,120]
[421238744,1777286687274,500.0,0.00032876,120]
[421238745,1777286688185,177.69855488,0.00032876,120]
[421238746,1777286688505,660.18,0.00032876,120]
[421238747,1777286688543,4909.68,0.00032876,120]
[421238748,1777286689392,925.16,0.00032876,120]
[421238749,1777286689830,500.0,0.00032876,120]
[421238750,1777286689995,500.0,0.00032876,120]
[421238751,1777286690051,691.69,0.00032876,120]
[421238752,1777286690649,500.0,0.00032876,120]
[421238753,1777286691476,500.0,0.00032876,120]
[421238754,1777286691778,691.03,0.00032876,120]
[421238755,1777286692421,500.0,0.00032876,120]
[421238756,1777286693619,500.0,0.00032876,120]
[421238757,1777286693911,500.0,0.00032876,120]
[421238758,1777286694074,500.0,0.00032876,120]
[421238759,1777286694395,500.0,0.00032876,120]
[421238760,1777286695201,953.58,0.00032876,120]
[421238761,1777286695768,922.63,0.00032876,120]
[421238762,1777286696061,550.85709189,0.00032876,120]
[421238763,1777286698031,2382.75,0.00032876,120]
[421238764,1777286698786,500.0,0.00032876,120]
[421238765,1777286699359,4917.9,0.00032876,120]
[421238766,1777286699513,525.11,0.00032876,120]
[421238767,1777286699561,551.36,0.00032876,120]
[421238768,1777286700173,500.0,0.00032876,120]
[421238769,1777286700410,1514.68,0.00032876,120]
[421238770,1777286700507,500.0,0.00032876,120]
[421238771,1777286701387,1552.04,0.00032876,120]
[421238772,1777286702429,168.9728767,0.00032876,120]
[421238773,1777286703012,500.0,0.00032876,120]
[421238774,1777286703221,854.83,0.00032876,120]
[421238775,1777286704523,500.0,0.00032876,120]
[421238776,1777286705611,500.0,0.00032876,120]
[421238777,1777286707225,840.29,0.00032876,120]
[421238778,1777286707714,500.0,0.00032876,120]
[421238779,1777286707801,829.75,0.00032876,120]
[421238780,1777286708090,739.88,0.00032876,120]
[421238781,1777286708386,919.84,0.00032876,120]
[421238782,1777286708442,1800.54,0.00032876,120]
[421238783,1777286708785,500.0,0.00032876,120]
[421238784,1777286709025,2750.7,0.00032876,120]
[421238785,1777286710570,215.98780731,0.00032876,120]
[421238786,1777286711687,1344.25,0.00032876,120]
[421238787,1777286711743,171.96122914,0.00032876,120]
[421238788,1777286712501,243.74045618,0.00032876,120]
[421238789,1777286712711,881.84,0.00032876,120]
[421238790,1777286714031,502.87352624,0.00032876,120]
[421238791,1777286714182,500.0,0.00032876,120]
[421238792,1777286715414,154.7224593,0.00032876,120]
[421238793,1777286715459,500.0,0.00032876,120]
[421238794,1777286715925,500.0,0.00032876,120]
[421238795,1777286715966,500.0,0.00032876,120]
[421238796,1777286716036,500.0,0.00032876,120]
[421238797,1777286716456,226.70893692,0.00032876,120]
[421238798,1777286717156,500.0,0.00032876,120]
[421238799,1777286717451,916.78,0.00032876,120]
[421238800,1777286718369,500.0,0.00032876,120]
[421238801,1777286718536,930.87,0.00032876,120]
[421238802,1777286718815,500.0,0.00032876,120]
[421238803,1777286718852,500.0,0.00032876,120]
[421238804,1777286719254,500.0,0.00032876,120]
[421238805,1777286719297,1345.97,0.00032876,120]
[421238806,1777286719385,1078.03,0.00032876,120]
[421238807,1777286720262,500.0,0.00032876,120]
[421238808,1777286720323,912.72,0.00032876,120]
[421238809,1777286720555,461.15261338,0.00032876,120]
[421238810,1777286722243,500.0,0.00032876,120]
[421238811,1777286722447,500.0,0.00032876,120]
[421238812,1777286723951,500.0,0.00032876,120]
[421238813,1777286725214,947.63,0.00032876,120]
[421238814,1777286726137,549.91,0.00032876,120]
[421238815,1777286726232,500.0,0.00032876,120]
[421238816,1777286726593,500.0,0.00032876,120]
[421238817,1777286727371,500.0,0.00032876,120]
[421238818,1777286727502,500.0,0.00032876,120]
[421238819,1777286727812,1592.53,0.00032876,120]
[421238820,1777286727918,442.43258271,0.00032876,120]
[421238821,1777286728297,748.29,0.00032876,120]
[421238822,1777286728872,500.0,0.00032876,120]
[421238823,1777286729569,331.26248475,0.00032876,120]
[421238824,1777286729856,1742.02,0.00032876,120]
[421238825,1777286730822,500.0,0.00032876,120]
[421238826,1777286731300,500.0,0.00032876,120]
[421238827,1777286732852,980.13,0.00032876,120]
[421238828,1777286732930,500.0,0.00032876,120]
[421238829,1777286732966,547.89,0.00032876,120]
[421238830,1777286733915,773.86,0.00032876,120]
[421238831,1777286734204,500.0,0.00032876,120]
[421238832,1777286734461,500.0,0.00032876,120]
[421238833,1777286734629,930.37,0.00032876,120]
[421238834,1777286734722,282.54493286,0.00032876,120]
[421238835,1777286735093,10648.42,0.00032876,120]
[421238836,1777286735328,500.0,0.00032876,120]
[421238837,1777286735464,808.71,0.00032876,120]
[421238838,1777286736931,697.0,0.00032876,120]
[421238839,1777286737497,500.0,0.00032876,120]
[421238840,1777286737559,1505.44700064,0.00032877,120]
[421238841,1777286737614,500.0,0.00032876,120]
[421238842,1777286738490,500.0,0.00032876,120]
[421238843,1777286739453,500.0,0.00032876,120]
[421238844,1777286739792,500.0,0.00032876,120]
[421238845,1777286739891,500.0,0.00032876,120]
[421238846,1777286740217,500.0,0.00032876,120]
[421238847,1777286740490,698.74,0.00032876,120]
[421238848,1777286740598,500.0,0.00032876,120]
[421238849,1777286740816,500.0,0.00032876,120]
[421238850,1777286742098,500.0,0.00032876,120]
[421238851,1777286742851,861.18,0.00032876,120]
[421238852,1777286742990,500.0,0.00032876,120]
[421238853,1777286743227,500.0,0.00032876,120]
[421238854,1777286743816,599.72,0.00032876,120]
[421238855,1777286743854,485.21891673,0.00032876,120]
[421238856,1777286744041,971.15,0.00032876,120]
[421238857,1777286744903,500.0,0.0003287,120]
[421238858,1777286745454,1898.91,0.00032876,120]
[421238859,1777286746451,500.0,0.00032876,120]
[421238860,1777286746635,500.0,0.00032876,120]
[421238861,1777286746673,266.13688255,0.00032876,120]
[421238862,1777286748288,291.39217053,0.00032876,120]
[421238863,1777286748377,500.0,0.00032876,120]
[421238864,1777286748435,218.58953567,0.00032876,120]
[421238865,1777286748721,500.0,0.00032876,120]
[421238866,1777286748901,2008.02,0.00032876,120]
[421238867,1777286748983,500.0,0.00032876,120]
[421238868,1777286749685,500.0,0.00032876,120]
[421238869,1777286749721,500.0,0.00032876,120]
[421238870,1777286750108,500.0,0.00032876,120]
[421238871,1777286751267,500.0,0.00032876,120]
[421238872,1777286751481,500.0,0.00032876,120]
[421238873,1777286751747,500.0,0.00032876,120]
[421238874,1777286752249,1573.98,0.00032876,120]
[421238875,1777286752601,546.88,0.00032876,120]
[421238876,1777286752656,500.0,0.00032876,120]
[421238877,1777286752906,500.0,0.00032876,120]
[421238878,1777286752961,500.0,0.00032876,120]
[421238879,1777286753450,500.0,0.00032876,120]
[421238880,1777286754339,933.2,0.00032876,120]
[421238881,1777286754593,500.0,0.00032876,120]
[421238882,1777286755037,500.0,0.00032876,120]
[421238883,1777286755260,919.33507901,0.00032876,120]
[421238884,1777286756099,923.43,0.00032876,120]
[421238885,1777286756179,500.0,0.00032876,120]
[421238886,1777286757526,500.0,0.00032876,120]
[421238887,1777286758455,500.0,0.00032876,120]
[421238888,1777286758518,194.35643986,0.00032876,120]
[421238889,1777286759547,500.0,0.00032876,120]
[421238890,1777286759881,183.0340422,0.00032876,120]
[421238891,1777286760007,500.0,0.00032876,120]
[421238892,1777286760367,893.08,0.00032876,120]
[421238893,1777286760528,175.14104339,0.00032876,120]
[421238894,1777286761303,545.89,0.00032876,120]
[421238895,1777286761353,500.0,0.00032876,120]
[421238896,1777286761754,500.0,0.00032876,120]
[421238897,1777286761891,500.0,0.00032876,120]
[421238898,1777286762482,500.0,0.00032876,120]
[421238899,1777286762884,607.22,0.00032876,120]
[421238900,1777286763234,500.28152875,0.00032876,120]
[421238901,1777286763503,500.0,0.00032876,120]
[421238902,1777286763876,500.0,0.00032876,120]
[421238903,1777286763950,500.0,0.00032876,120]
[421238904,1777286764272,500.0,0.00032876,120]
[421238905,1777286764972,500.0,0.00032876,120]
[421238906,1777286765318,500.0,0.00032876,120]
[421238907,1777286765946,1022.01,0.00032876,120]
[421238908,1777286766404,1403.37,0.00032876,120]
[421238909,1777286766978,186.4634049,0.00032876,120]
[421238910,1777286767109,500.0,0.00032876,120]
[421238911,1777286768084,500.0,0.00032876,120]
[421238912,1777286768141,276.19556969,0.00032876,120]
[421238913,1777286769186,500.0,0.00032876,120]
[421238914,1777286769272,571.92,0.00032876,120]
[421238915,1777286769320,500.0,0.00032876,120]
[421238916,1777286769539,500.0,0.00032876,120]
[421238917,1777286770467,996.98,0.00032876,120]
[421238918,1777286771883,500.0,0.00032876,120]
[421238919,1777286771939,2416.0,0.00032876,120]
[421238920,1777286772945,225.68569538,0.00032876,120]
[421238921,1777286773326,500.0,0.00032876,120]
[421238922,1777286773609,500.0,0.00032876,120]
[421238923,1777286774301,500.0,0.00032876,120]
[421238924,1777286774444,500.0,0.00032876,120]
[421238925,1777286774655,500.0,0.00032876,120]
[421238926,1777286774699,500.0,0.00032876,120]
[421238927,1777286775589,500.0,0.00032876,120]
[421238928,1777286776437,500.0,0.00032876,120]
[421238929,1777286776816,2027.39,0.00032876,120]
[421238930,1777286777310,500.0,0.00032876,120]
[421238931,1777286777374,500.0,0.00032876,120]
[421238932,1777286777435,500.0,0.00032876,120]
[421238933,1777286777639,500.0,0.00032876,120]
[421238934,1777286778541,544.78,0.00032876,120]
[421238935,1777286780890,500.0,0.00032876,120]
[421238936,1777286780983,1173.63,0.00032876,120]
[421238937,1777286781221,500.0,0.00032876,120]
[421238938,1777286781286,500.0,0.00032876,120]
[421238939,1777286781355,231.86927999,0.00032876,120]
[421238940,1777286781662,500.0,0.00032876,120]
[421238941,1777286782194,580.92,0.00032876,120]
[421238942,1777286782264,500.0,0.00032876,120]
[421238943,1777286782317,500.0,0.00032876,120]
[421238944,1777286782439,478.83397718,0.00032876,120]
[421238945,1777286783065,500.0,0.00032876,120]
[421238946,1777286783173,500.0,0.00032876,120]
[421238947,1777286783820,957.19,0.00032876,120]
[421238948,1777286783887,500.0,0.00032876,120]
[421238949,1777286783997,500.0,0.00032876,120]
[421238950,1777286784096,500.0,0.00032876,120]
[421238951,1777286784220,500.0,0.00032876,120]
[421238952,1777286784347,500.0,0.00032876,120]
[421238953,1777286786390,1129.42,0.00032876,120]
[421238954,1777286786809,500.0,0.00032876,120]
[421238955,1777286786937,500.0,0.00032876,120]
[421238956,1777286787218,549.6,0.00032876,120]
[421238957,1777286787864,500.0,0.00032876,120]
[421238958,1777286788417,500.0,0.00032876,120]
[421238959,1777286788705,500.0,0.00032876,120]
[421238960,1777286789840,500.0,0.00032876,120]
[421238961,1777286790232,500.0,0.00032876,120]
[421238962,1777286792117,500.0,0.00032876,120]
[421238963,1777286792277,500.0,0.00032876,120]
[421238964,1777286792737,500.0,0.00032876,120]
[421238965,1777286793360,500.0,0.00032876,120]
[421238966,1777286793630,500.0,0.00032876,120]
[421238967,1777286793680,910.9,0.00032876,120]
[421238968,1777286794204,510.64261664,0.00032876,120]
[421238969,1777286794253,957.72,0.00032876,120]
[421238970,1777286794635,2273.93,0.00032876,120]
[421238971,1777286794906,500.0,0.00032876,120]
[421238972,1777286795317,500.0,0.00032876,120]
[421238973,1777286795647,5000.0,0.00032876,120]
[421238974,1777286795960,531.34,0.00032876,120]
[421238975,1777286796020,371.01869655,0.00032876,120]
[421238976,1777286796683,500.0,0.00032876,120]
[421238977,1777286796771,500.0,0.00032876,120]
[421238978,1777286796820,500.0,0.00032876,120]
[421238979,1777286797604,500.0,0.00032876,120]
[421238980,1777286798412,500.0,0.00032876,120]
[421238981,1777286798462,500.0,0.00032876,120]
[421238982,1777286798775,826.33,0.00032876,120]
[421238983,1777286799513,500.0,0.00032876,120]
[421238984,1777286801200,500.0,0.00032876,120]
[421238985,1777286801760,500.0,0.00032876,120]
[421238986,1777286801818,509.36,0.00032876,120]
[421238987,1777286802840,1000.0,0.00032876,120]
[421238988,1777286802960,500.0,0.00032876,120]
[421238989,1777286803133,500.0,0.00032876,120]
[421238990,1777286803338,500.0,0.00032876,120]
[421238991,1777286803525,483.31918486,0.00032876,120]
[421238992,1777286804095,274.37266022,0.00032876,120]
[421238993,1777286804640,1144.83,0.00032876,120]
[421238994,1777286805533,500.0,0.00032876,120]
[421238995,1777286805580,870.72,0.00032876,120]
[421238996,1777286805694,500.0,0.00032876,120]
[421238997,1777286806151,500.0,0.00032876,120]
[421238998,1777286806193,500.0,0.00032876,120]
[421238999,1777286806363,803.02,0.00032876,120]
[421239000,1777286806420,500.0,0.00032876,120]
[421239001,1777286806495,500.0,0.00032876,120]
[421239002,1777286806710,1987.57,0.00032876,120]
[421239003,1777286807224,1889.91,0.00032876,120]
[421239004,1777286809317,997.41,0.00032876,120]
[421239005,1777286809518,500.0,0.00032876,120]
[421239006,1777286810073,275.88437148,0.00032876,120]
[421239007,1777286810159,645.47,0.00032876,120]
[421239008,1777286810274,551.39,0.00032876,120]
[421239009,1777286811254,500.0,0.00032876,120]
[421239010,1777286812538,229.54207271,0.00032876,120]
[421239011,1777286812594,500.0,0.00032876,120]
[421239012,1777286814168,500.0,0.00032876,120]
[421239013,1777286814316,500.0,0.00032876,120]
[421239014,1777286815741,500.0,0.00032876,120]
[421239015,1777286816035,500.0,0.00032876,120]
[421239016,1777286816078,607.71,0.00032876,120]
[421239017,1777286816268,167.29654119,0.00032876,120]
[421239018,1777286816799,500.0,0.00032876,120]
[421239019,1777286817489,500.0,0.00032876,120]
[421239020,1777286817643,500.0,0.00032876,120]
[421239021,1777286817952,500.0,0.00032876,120]
[421239022,1777286818403,500.0,0.00032876,120]
[421239023,1777286819031,193.0019004,0.00032876,120]
[421239024,1777286819129,500.0,0.00032876,120]
[421239025,1777286819751,1410.28,0.00032876,120]
[421239026,1777286819860,500.0,0.00032876,120]
[421239027,1777286820110,500.0,0.00032876,120]
[421239028,1777286820154,500.0,0.00032876,120]
[421239029,1777286820430,1075.28,0.00032876,120]
[421239030,1777286820854,276.22092156,0.00032876,120]
[421239031,1777286820898,500.0,0.00032876,120]
[421239032,1777286821008,1183.54,0.00032876,120]
[421239033,1777286822719,2060.0,0.00032877,120]
[421239034,1777286822963,512.2,0.00032876,120]
[421239035,1777286823110,500.0,0.00032876,120]
[421239036,1777286824546,500.0,0.00032876,120]
[421239037,1777286824951,500.0,0.00032876,120]
[421239038,1777286825070,500.0,0.00032876,120]
[421239039,1777286825114,571.84,0.00032876,120]
[421239040,1777286825903,500.0,0.00032876,120]
[421239041,1777286827132,670.88,0.00032876,120]
[421239042,1777286827508,927.87,0.00032876,120]
[421239043,1777286829198,500.0,0.00032876,120]
[421239044,1777286829330,500.0,0.00032876,120]
[421239045,1777286830965,500.0,0.00032876,120]
[421239046,1777286831048,733.46,0.00032876,120]
[421239047,1777286831296,500.0,0.00032876,120]
[421239048,1777286831464,845.56,0.00032876,120]
[421239049,1777286831652,528.69494335,0.00032876,120]
[421239050,1777286832662,500.0,0.00032876,120]
[421239051,1777286833349,500.0,0.00032876,120]
[421239052,1777286834219,500.0,0.00032876,120]
[421239053,1777286835480,1708.75,0.00032876,120]
[421239054,1777286835528,500.0,0.00032876,120]
[421239055,1777286835597,500.0,0.00032876,120]
[421239056,1777286835806,500.0,0.00032876,120]
[421239057,1777286836016,500.0,0.00032876,120]
[421239058,1777286836075,500.0,0.00032876,120]
[421239059,1777286836503,247.86786338,0.00032876,120]
[421239060,1777286837012,1389.02,0.00032876,120]
[421239061,1777286837402,500.0,0.00032876,120]
[421239062,1777286838012,7551.25,0.00032876,120]
[421239063,1777286838216,721.4,0.00032876,120]
[421239064,1777286838345,969.99,0.00032876,120]
[421239065,1777286838724,500.0,0.00032876,120]
[421239066,1777286838976,500.0,0.00032876,120]
[421239067,1777286839259,832.2,0.00032876,120]
[421239068,1777286839929,500.0,0.00032876,120]
[421239069,1777286840937,500.0,0.00032876,120]
[421239070,1777286841181,1256.96,0.00032876,120]
[421239071,1777286842142,822.73,0.00032876,120]
[421239072,1777286842575,354.323926,0.00032876,120]
[421239073,1777286843285,500.0,0.00032876,120]
[421239074,1777286843540,500.0,0.00032876,120]
[421239075,1777286844449,500.0,0.00032876,120]
[421239076,1777286846568,1697.87,0.00032876,120]
[421239077,1777286846710,564.06315292,0.00032876,120]
[421239078,1777286846775,500.0,0.00032876,120]
[421239079,1777286847430,500.0,0.00032876,120]
[421239080,1777286847786,186.71389925,0.00032876,120]
[421239081,1777286848253,500.0,0.00032876,120]
[421239082,1777286848349,725.79,0.00032876,120]
[421239083,1777286848399,767.5,0.00032876,120]
[421239084,1777286848471,740.81,0.00032876,120]
[421239085,1777286848612,704.65,0.00032876,120]
[421239086,1777286848850,500.0,0.00032876,120]
[421239087,1777286849386,500.0,0.00032876,120]
[421239088,1777286849964,874.64,0.00032876,120]
[421239089,1777286850425,500.0,0.00032876,120]
[421239090,1777286851442,500.0,0.00032876,120]
[421239091,1777286854146,539.51,0.00032876,120]
[421239092,1777286854351,1571.63,0.00032876,120]
[421239093,1777286854431,500.0,0.00032876,120]
[421239094,1777286854872,500.0,0.00032876,120]
[421239095,1777286855375,500.0,0.00032876,120]
[421239096,1777286856139,500.0,0.00032876,120]
[421239097,1777286856214,3139.33,0.00032876,120]
[421239098,1777286857162,500.0,0.00032876,120]
[421239099,1777286857253,500.0,0.00032876,120]
[421239100,1777286857345,500.0,0.00032876,120]
[421239101,1777286859161,631.89,0.00032876,120]
[421239102,1777286859257,500.0,0.00032876,120]
[421239103,1777286859349,500.0,0.00032876,120]
[421239104,1777286859559,724.47,0.00032876,120]
[421239105,1777286859972,500.0,0.00032876,120]
[421239106,1777286860272,830.35,0.00032876,120]
[421239107,1777286860469,714.42,0.00032876,120]
[421239108,1777286861424,500.0,0.00032875,120]
[421239109,1777286862093,500.0,0.00032876,120]
[421239110,1777286862468,500.0,0.00032876,120]
[421239111,1777286862512,529.87,0.00032876,120]
[421239113,1777286863099,500.0,0.00032876,120]
[421239114,1777286863635,500.0,0.00032876,120]
[421239115,1777286863714,890.53,0.00032876,120]
[421239116,1777286864628,500.0,0.00032876,120]
[421239117,1777286865442,633.28,0.00032876,120]
[421239118,1777286865952,1042.08,0.00032876,120]
[421239119,1777286866018,781.10151516,0.00032877,120]
[421239120,1777286866065,500.0,0.00032876,120]
[421239121,1777286867075,1031.26,0.00032876,120]
[421239122,1777286868002,500.0,0.00032876,120]
[421239123,1777286868435,500.0,0.00032876,120]
[421239124,1777286868619,500.0,0.00032876,120]
[421239125,1777286868670,500.0,0.00032876,120]
[421239126,1777286869417,180.0,0.00032713,120]
[421239127,1777286869614,500.0,0.00032876,120]
[421239128,1777286869662,789.82,0.00032876,120]
[421239129,1777286870440,500.0,0.00032876,120]
[421239130,1777286872611,500.0,0.00032876,120]
[421239131,1777286872683,500.0,0.00032876,120]
[421239132,1777286872772,500.0,0.00032876,120]
[421239133,1777286873092,500.0,0.00032876,120]
[421239134,1777286874456,1500.44899971,0.00032877,120]
[421239135,1777286874650,500.0,0.00032876,120]
[421239136,1777286875880,500.0,0.00032876,120]
[421239137,1777286876161,500.0,0.00032876,120]
[421239138,1777286876333,500.0,0.00032876,120]
[421239139,1777286876550,2152.64,0.00032876,120]
[421239140,1777286876714,500.0,0.00032876,120]
[421239141,1777286876785,500.0,0.00032876,120]
[421239142,1777286876841,500.0,0.00032876,120]
[421239143,1777286876900,500.0,0.00032876,120]
[421239144,1777286877489,500.0,0.00032876,120]
[421239145,1777286878877,951.45,0.00032876,120]
[421239146,1777286878965,10570.76,0.00032876,120]
[421239147,1777286879570,500.0,0.00032876,120]
[421239148,1777286879617,953.25,0.00032876,120]
[421239149,1777286880419,500.0,0.00032876,120]
[421239150,1777286880482,500.0,0.00032876,120]
[421239151,1777286880884,500.0,0.00032876,120]
[421239152,1777286881380,500.0,0.00032876,120]
[421239153,1777286881600,683.94,0.00032876,120]
[421239154,1777286882164,500.0,0.00032876,120]
[421239155,1777286883883,500.0,0.00032876,120]
[421239156,1777286884189,1457.61,0.00032876,120]
[421239157,1777286884718,500.0,0.00032876,120]
[421239158,1777286884792,500.0,0.00032876,120]
[421239159,1777286884915,500.0,0.00032876,120]
[421239160,1777286884963,853.59,0.00032876,120]
[421239161,1777286885104,500.0,0.00032876,120]
[421239162,1777286885154,500.0,0.00032876,120]
[421239163,1777286885473,927.26,0.00032876,120]
[421239164,1777286886943,692.0,0.00032876,120]
[421239165,1777286887013,560.05508668,0.00032876,120]
[421239166,1777286889558,500.0,0.00032876,120]
[421239167,1777286889608,1072.51,0.00032876,120]
[421239168,1777286889684,500.0,0.00032876,120]
[421239169,1777286890511,2915.57,0.00032876,120]
[421239170,1777286890826,500.0,0.00032876,120]
[421239171,1777286891243,731.44,0.00032876,120]
[421239172,1777286891287,500.0,0.00032876,120]
[421239173,1777286891688,500.0,0.00032876,120]
[421239174,1777286892452,500.0,0.00032876,120]
[421239175,1777286892601,701.43,0.00032876,120]
[421239176,1777286892862,500.0,0.00032876,120]
[421239177,1777286892997,500.0,0.00032876,120]
[421239178,1777286893919,954.88,0.00032876,120]
[421239179,1777286894415,838.15,0.00032876,120]
[421239180,1777286894720,500.0,0.00032876,120]
[421239181,1777286895223,1783.16,0.00032876,120]
[421239182,1777286895577,500.0,0.00032876,120]
[421239183,1777286895626,500.0,0.00032876,120]
[421239184,1777286895910,500.0,0.00032876,120]
[421239185,1777286896736,500.0,0.00032876,120]
[421239186,1777286897518,4705.11,0.00032876,120]
[421239187,1777286899351,500.0,0.00032876,120]
[421239188,1777286899452,1730.6,0.00032876,120]
[421239189,1777286900443,500.0,0.00032876,120]
[421239190,1777286900577,500.0,0.00032876,120]
[421239191,1777286900931,500.0,0.00032876,120]
[421239192,1777286901242,500.0,0.00032876,120]
[421239193,1777286901928,1123.77,0.00032876,120]
[421239194,1777286902248,500.0,0.00032876,120]
[421239195,1777286902337,500.0,0.00032876,120]
[421239196,1777286902417,500.0,0.00032876,120]
[421239197,1777286903478,500.0,0.00032876,120]
[421239198,1777286903998,1408.68,0.00032876,120]
[421239199,1777286904730,714.81,0.00032876,120]
[421239200,1777286904934,1779.59,0.00032876,120]
[421239201,1777286906346,500.0,0.00032876,120]
[421239202,1777286906580,667.82,0.00032876,120]
[421239203,1777286906648,500.0,0.00032876,120]
[421239204,1777286906719,5381.05,0.00032876,120]
[421239205,1777286908489,500.0,0.00032876,120]
[421239206,1777286908732,2035.1,0.00032876,120]
[421239207,1777286908847,922.62,0.00032876,120]